[Event "SixDays Budapest IM-A 10-2024"]
[Site "Budapest"]
[Date "2024.10.02"]
[Round "4.5"]
[White "Polyik, Peter"]
[Black "Kwon, Sehyun"]
[Result "1/2-1/2"]
[ECO "A50"]
[WhiteElo "2304"]
[BlackElo "2248"]
[Annotator "TA"]
[PlyCount "92"]
[EventDate "2024.09.24"]
[EventType "tourn"]
[EventCountry "HUN"]
[SourceTitle "playchess.com"]
[Source "ChessBase"]
[SourceQuality "1"]
[TimeControl "5400+30"]

{[%evp 9,92,58,75,75,69,73,77,62,56,63,68,53,87,85,99,81,96,92,108,64,62,29,49,15,56,15,17,17,42,12,57,46,61,53,47,14,31,16,22,12,12,12,81,12,133,12,12,12,12,8,12,12,12,12,12,12,12,-314,28,15,16,0,18,13,26,26,34,34,34,22,34,3,34,0,34,33,29,0,30,30,30,23,30,0,38]} 1. c4 {[%emt 0:01:45]} b6 {[%emt 0:02:34]} 2. d4 {[%emt 0:00:14]} Nf6 {[%emt 0:00:29]} 3. Nc3 {[%emt 0:01:52]} Bb7 {[%emt 0:00:40]} 4. d5 {[%emt 0:00:37]} e5 {[%emt 0:03:28]} 5. a3 {[%emt 0:02:16]} a5 {[%emt 0:08:11]} 6. e4 {[%emt 0:03:29]} Na6 {[%emt 0:03:02]} 7. Bd3 {[%emt 0:01:33]} Be7 {[%emt 0:02:31]} 8. Nge2 {[%emt 0:00:31] White is better.} O-O {[%emt 0:02:47]} 9. O-O {[%emt 0:00:30]} d6 {[%emt 0:00:58]} 10. Rb1 {[%emt 0:06:52]} Nc5 {[%emt 0:07:41]} 11. Bc2 {[%emt 0:03:21]} Re8 {[%emt 0:08:13]} 12. f3 {[%emt 0:02:33]} Ncd7 {[%emt 0:12:20]} 13. Ba4 {[%emt 0:02:53]} Ba6 {[%emt 0:01:31]} 14. Bb5 {[%emt 0:00:40]} Bxb5 {[%emt 0:01:53]} 15. cxb5 {[%emt 0:02:11]} Nf8 {[%emt 0:01:38]} 16. b4 {[%emt 0:02:42]} Ng6 {[%emt 0:07:17]} 17. Be3 {[%emt 0:07:43]} axb4 {[%emt 0:05:05]} 18. axb4 {[%emt 0:00:06]} h6 {[%emt 0:00:34]} 19. Ra1 {[%emt 0:00:32]} Qd7 {[%emt 0:04:35]} 20. Ra6 {[%emt 0:06:16]} Nh7 {[%emt 0:02:19]} 21. Qa4 {[%emt 0:01:08]} Rab8 {[%emt 0:01:06]} 22. Qb3 {[%emt 0:00:28]} f5 {[%emt 0:04:15]} 23. exf5 {[%emt 0:03:13]} Qxf5 {[%emt 0:00:07]} 24. Qc4 {[%emt 0:00:29]} Bd8 {[%emt 0:02:02]} 25. Ne4 {[%emt 0:08:25][%cal Oe3b6]} Ne7 {[%emt 0:01:11] [#]} (25... Rf8 $11) 26. N2c3 {[%emt 0:09:46]} (26. Bxb6 $1 $16 Qd7 (26... Rxb6 $2 27. Rxb6 Ng5 28. Rb8 $18) (26... cxb6 $2 27. Nxd6 Qd7 28. Nxe8 $18) 27. Ba7 Qxb5 28. Qa2) 26... Qf7 {[%emt 0:03:58] [#]} (26... Qg6 $11 {remains equal.}) 27. Ra7 {[%emt 0:00:45] White has more active pieces. The black rooks are passive.} ({White has to play} 27. Bxb6 $1 $16 Rc8 (27... Rxb6 $2 {loses.} 28. Rxb6 Nf5 29. Rb7 $18) (27... cxb6 $2 {perishes.} 28. Nxd6 Qg6 29. Nxe8 $18) 28. Bf2) 27... Qg6 {[%emt 0:03:06]} 28. Rfa1 {[%emt 0:02:07]} Nf6 {[%emt 0:01:33]} 29. Nxf6+ {[%emt 0:09:43]} Qxf6 {[%emt 0:02:06]} 30. Ne4 {[%emt 0:00:41]} Qf7 {[%emt 0:01:02]} 31. Rd1 {[%emt 0:00:06]} Rf8 {[%emt 0:01:00]} 32. Bf2 {[%emt 0:03:26]} Kh8 {[%emt 0:04:14]} 33. Bh4 $2 {[%emt 0:01:01][%mdl 8192]} (33. Ng3 $11) 33... g5 $2 {[%emt 0:00:23]} (33... Nc8 $19 34. Bxd8 Nxa7) 34. Bf2 {[%emt 0:00:23]} Qg6 {[%emt 0:00:10]} 35. Ra3 {[%emt 0:00:36]} Rf7 {[%emt 0:00:19]} 36. Rda1 {[%emt 0:02:02]} Rf8 {[%emt 0:00:15]} 37. h3 {[%emt 0:00:37]} Qf7 {[%emt 0:00:21]} 38. Rd1 {[%emt 0:00:37]} Qg6 {[%emt 0:01:47]} 39. Qd3 {[%emt 0:03:41]} Ng8 {[%emt 0:01:02]} (39... Qf5 {keeps more tension.} 40. Kh2 Ng6 41. Be1 Nf4) 40. Ng3 {[%emt 0:02:53]} Qf7 {[%emt 0:00:22]} 41. Ne4 {[%emt 0:00:29]} Qg6 {[%emt 0:00:24]} 42. Rda1 {[%emt 0:00:30]} Ne7 {[%emt 0:00:24]} 43. Rd1 {[%emt 0:01:53]} Ng8 {[%emt 0:00:22]} 44. Qd2 {[%emt 0:00:44]} Qe8 {[%emt 0:00:24]} 45. Qe2 {[%emt 0:00:20]} Qf7 {[%emt 0:00:24]} 46. Qd3 {[%emt 0:01:01]} Qg6 {Weighted Error Value: White=0.30/Black=0.29 (precise) .  Loses game:     	White=1     	---        Missed win:     	---       	Black=1      Mistake:       	White=2     	Black=2      Inaccurate:     	White=7     	Black=4      OK:         	White=5     	Black=14     Best:        	White=1     	---} 1/2-1/2

[Event "SixDays Budapest IM-A 10-2024"]
[Site "Budapest"]
[Date "2024.10.02"]
[Round "5.1"]
[White "Valkova, Angelika"]
[Black "Polyik, Peter"]
[Result "0-1"]
[ECO "A40"]
[WhiteElo "2068"]
[BlackElo "2304"]
[Annotator "TA"]
[PlyCount "84"]
[EventDate "2024.09.24"]
[EventType "tourn"]
[EventCountry "HUN"]
[SourceTitle "playchess.com"]
[Source "ChessBase"]
[SourceQuality "1"]
[TimeControl "5400+30"]

{[%evp 9,84,2,0,-13,-12,10,8,-18,0,-66,-22,-57,0,-3,6,-12,94,-52,-48,-52,-51,-97,-100,-116,-102,-417,-183,-162,-170,-175,-171,-164,-166,-204,-210,-223,-201,-251,-229,-257,-255,-277,-287,-285,-290,-284,-277,-370,-362,-469,-412,-482,-485,-542,-524,-606,-583,-591,-602,-574,-522,-866,-840,-818,-801,-1424,-1406,-1496,-1477,-2063,-1953,-1655,-1538,-2055,-1744,-1428,-1424]} 1. d4 {[%emt 0:00:22]} e6 {[%emt 0:00:06]} 2. c4 {[%emt 0:00:05]} b6 {[%emt 0:00:04]} 3. a3 {[%emt 0:00:51]} Bb7 {[%emt 0:00:06]} 4. d5 {[%emt 0:00:20]} Nf6 {[%emt 0:01:38]} 5. Nc3 {[%emt 0:00:06]} Bd6 {[%emt 0:00:11]} 6. e4 {[%emt 0:01:23]} exd5 {[%emt 0:00:42]} 7. cxd5 {[%emt 0:01:40] Black should prevent f4.} O-O {[%emt 0:00:27]} 8. Bg5 {[%emt 0:08:54] The position is equal.} h6 {[%emt 0:01:38]} 9. h4 {[%emt 0:00:38]} Re8 {[%emt 0:05:25]} (9... hxg5 $6 10. hxg5 g6 11. gxf6 Qxf6 12. Nf3 $14) 10. Qf3 {[%emt 0:06:38]} hxg5 {[%emt 0:18:50]} (10... Be5 $15 11. Nge2 c6 (11... hxg5 12. hxg5 Nxe4 13. Nxe4 $15)) 11. hxg5 $11 {[%emt 0:00:17] [#]} Nxe4 $1 {[%emt 0:00:14]} 12. Nxe4 {[%emt 0:01:45]} Bxd5 {[%emt 0:02:27] [#]} (12... Qxg5 $11 13. Be2 Qe5 (13... Bxd5 $2 {is the wrong capture.} 14. Qh3 $18) (13... Qxd5 14. Nf6+ gxf6 15. Qxf6 Rxe2+ 16. Nxe2 Qa5+ 17. b4 Bxb4+ 18. Kf1 Bxg2+ 19. Kxg2 Qd5+ 20. f3)) 13. Bd3 {[%emt 0:04:04]} (13. Qh3 $1 $16 {[%csl Gh1][%cal Rh3h8]} Rxe4+ (13... Bxe4 14. Qh8#) 14. Ne2) 13... Bxe4 {[%emt 0:03:21]} 14. Bxe4 {[%emt 0:00:21]} Qxg5 {[%emt 0:02:35] ...Qg6 is the strong threat.} 15. Ne2 {[%emt 0:03:02] [#]} (15. Kf1 $15 Nc6 16. Bd5) 15... Nc6 $1 $17 {[%emt 0:01:40]} 16. Rh5 {[%emt 0:06:37]} (16. Kf1 Rad8) 16... Qf6 {[%emt 0:02:48]} 17. Rf5 $2 {[%emt 0:10:10][%mdl 8192] [#] This costs White the game.} (17. Qxf6 $17 gxf6 18. Rh4) 17... Nd4 {[%emt 0:01:32]} 18. Rxf6 $19 {[%emt 0:08:01]} Nxf3+ {[%emt 0:00:40]} 19. Bxf3 {[%emt 0:00:18] aiming for Rxd6.} gxf6 {[%emt 0:00:04]} 20. Bxa8 {[%emt 0:00:07]} Rxa8 {[%emt 0:00:03][%mdl 4096] Endgame. KRB-KRN} 21. Kd2 {[%emt 0:01:25]} Re8 {[%emt 0:06:23]} 22. Nc3 {[%emt 0:00:49]} c6 {[%emt 0:00:30]} 23. b3 {[%emt 0:01:39]} Be5 {[%emt 0:01:09]} 24. Ra2 {[%emt 0:00:07]} d5 {[%emt 0:01:02]} 25. a4 {[%emt 0:00:27]} Bxc3+ {[%emt 0:01:27]} 26. Kxc3 {[%emt 0:00:05] KR-KR} a5 {[%emt 0:00:03]} 27. Rd2 {[%emt 0:00:49]} Re4 {[%emt 0:00:28]} 28. g3 {[%emt 0:01:04]} Kf8 {[%emt 0:00:05]} 29. Rd3 {[%emt 0:00:18]} Ke7 {[%emt 0:00:20]} 30. Rf3 {[%emt 0:00:19]} Ke6 {[%emt 0:00:12] Black is clearly winning.} 31. Kd3 {[%emt 0:00:10]} Ke5 {[%emt 0:00:18]} 32. Kc3 {[%emt 0:00:17]} f5 {[%emt 0:00:05]} 33. Kd3 {[%emt 0:00:07]} f6 {[%emt 0:04:44]} 34. Kc3 {[%emt 0:00:23]} f4 {[%emt 0:00:05]} 35. gxf4+ {[%emt 0:00:18]} Rxf4 {[%emt 0:00:04]} 36. Re3+ {[%emt 0:00:11]} Kd6 {[%emt 0:00:17] ( -> ...d4+)} 37. Re8 {[%emt 0:01:47]} Rxf2 {[%emt 0:00:34]} 38. Rb8 {[%emt 0:00:07]} Kc5 {[%emt 0:00:22]} 39. Rf8 {[%emt 0:00:34]} f5 {[%emt 0:01:25]} 40. Rf6 {[%emt 0:00:13]} f4 {[%emt 0:00:35]} 41. Kd3 {[%emt 0:00:14]} Rf3+ {[%emt 0:00:13]} 42. Kc2 {[%emt 0:00:07]} Rf1 {[%emt 0:00:05] Weighted Error Value: White=0.81/Black=0.20 (precise) .  Loses game:     	White=1     	---        Mistake:       	White=3     	Black=3      Inaccurate:     	White=3     	Black=1      OK:         	White=2     	Black=14     Best:        	White=1     	Black=1      Brilliant:      	---       	Black=1} 0-1

[Event "SixDays Budapest IM-A 10-2024"]
[Site "Budapest"]
[Date "2024.10.02"]
[Round "5.2"]
[White "Kwon, Sehyun"]
[Black "Pavan Karthikeya Varma Gunturi"]
[Result "1/2-1/2"]
[ECO "A46"]
[WhiteElo "2248"]
[BlackElo "2056"]
[Annotator "TA"]
[PlyCount "104"]
[EventDate "2024.09.24"]
[EventType "tourn"]
[EventCountry "HUN"]
[SourceTitle "playchess.com"]
[Source "ChessBase"]
[SourceQuality "1"]
[TimeControl "5400+30"]

{[%evp 9,104,30,77,28,29,23,20,19,28,20,39,32,56,66,78,57,67,66,63,64,67,6,42,0,0,0,14,0,0,0,0,0,0,-5,-6,-8,-10,-33,0,0,0,0,10,15,12,14,7,8,7,23,18,0,63,54,67,8,145,123,144,118,121,144,204,208,208,195,395,403,305,299,531,438,542,446,535,359,189,8,40,8,8,8,8,8,8,8,8,8,8,8,8,8,8,0,8,8,8]} 1. d4 {[%emt 0:02:57]} Nf6 {[%emt 0:00:08]} 2. Nf3 {[%emt 0:00:23]} e6 {[%emt 0:00:25]} 3. g3 {[%emt 0:00:19]} d5 {[%emt 0:03:31]} 4. Bg2 {[%emt 0:00:08]} a6 {[%emt 0:01:49]} 5. O-O {[%emt 0:03:13]} c5 {[%emt 0:03:27]} (5... Nbd7 $11) 6. dxc5 {[%emt 0:14:10]} (6. c4 $1 $16) 6... Bxc5 {[%emt 0:00:18] [#]} 7. c4 $1 {[%emt 0:00:12]} O-O {[%emt 0:03:18]} (7... Nc6 8. cxd5) 8. cxd5 {[%emt 0:00:40]} Nxd5 {[%emt 0:03:25]} 9. a3 {[%emt 0:01:37]} Bd7 {[%emt 0:05:04]} 10. e4 {[%emt 0:02:55]} Nf6 {[%emt 0:03:51]} 11. Qc2 {[%emt 0:02:28]} Be7 {[%emt 0:03:00]} 12. Nc3 {[%emt 0:02:19]} Nc6 {[%emt 0:04:31]} 13. Rd1 {[%emt 0:11:50]} Rc8 {[%emt 0:05:40]} 14. Qe2 {[%emt 0:04:09] White is more active.} Qc7 {[%emt 0:06:39]} 15. Bf4 {[%emt 0:07:13]} ({Better is} 15. e5 $14 Nd5 16. Nxd5 exd5 17. Rxd5) 15... e5 $11 {[%emt 0:06:47]} 16. Bg5 {[%emt 0:01:03]} Bg4 {[%emt 0:02:56]} 17. Be3 {[%emt 0:06:01] Prevents Nd4} Rfd8 {[%emt 0:05:54][%cal Oc6d4]} 18. Rac1 {[%emt 0:06:27]} (18. Nd5 {looks sharper.} Nxd5 19. exd5 e4 20. dxc6 exf3 21. Bxf3 Bxf3 22. Qxf3 Qxc6 23. Rxd8+ Bxd8 24. Qg4) 18... Qa5 {[%emt 0:05:36] Dodges Nd5} 19. Qe1 {[%emt 0:08:50]} Rxd1 {[%emt 0:04:11]} 20. Rxd1 {[%emt 0:03:07]} Rd8 {[%emt 0:01:24]} 21. Rc1 {[%emt 0:01:56]} h6 {[%emt 0:03:15]} 22. Nd2 {[%emt 0:04:15]} Be6 {[%emt 0:01:50] Dodges Nc4} 23. h3 {[%emt 0:05:31]} Nd4 {[%emt 0:08:08]} 24. f4 {[%emt 0:00:23]} exf4 {[%emt 0:02:42]} 25. gxf4 {[%emt 0:00:12]} Qh5 {[%emt 0:02:22]} 26. f5 {[%emt 0:02:10]} Bc5 $1 {[%emt 0:03:11][%cal Od4e2] White must now prevent ...Ne2+!} 27. Qf2 {[%emt 0:05:28]} Nb3 {[%emt 0:04:38]} 28. Nxb3 {[%emt 0:01:48]} Bxe3 {[%emt 0:00:06]} 29. Qxe3 {[%emt 0:00:02]} Bxb3 {[%emt 0:00:16]} 30. Ne2 {[%emt 0:01:47][%cal Oe4e5]} Rd1+ {[%emt 0:01:04]} (30... Re8 $11) 31. Rxd1 $14 {[%emt 0:00:04]} Bxd1 {[%emt 0:00:05]} 32. Ng3 {[%emt 0:00:15]} (32. Nd4 $14) 32... Qg5 {[%emt 0:02:59]} (32... Qh4 $11 {keeps the balance.}) 33. Qxg5 $16 {[%emt 0:00:39]} hxg5 {[%emt 0:00:08][%mdl 4096] Endgame. KBN-KBN} 34. e5 $1 {[%emt 0:00:05][%csl LRb7,LRf6]} Nd7 {[%emt 0:00:24]} 35. Bxb7 {[%emt 0:00:08]} a5 {[%emt 0:00:36]} (35... Nc5 $16 {keeps fighting.} 36. Bg2 Bb3) 36. e6 $18 {[%emt 0:00:16]} fxe6 {[%emt 0:00:45]} 37. fxe6 {[%emt 0:00:12]} Nc5 {[%emt 0:00:49]} (37... Ne5 38. b4 axb4) 38. Bd5 {[%emt 0:00:23] Intending e7+ and mate.} Kf8 {[%emt 0:01:06]} 39. b4 {[%emt 0:01:41]} axb4 {[%emt 0:00:25]} (39... Bb3 {was called for.} 40. Bxb3 axb4) 40. axb4 {[%emt 0:00:03]} Bb3 {[%emt 0:00:57]} 41. Bxb3 {[%emt 0:00:51]} Nxb3 {[%emt 0:00:20] KN-KN} 42. Ne4 {[%emt 0:00:20][%cal Ob4b5]} (42. Nf5 g6 43. Ng3 Nd4 $11) 42... g4 {[%emt 0:01:00]} 43. h4 {[%emt 0:00:54]} (43. hxg4 $18 {b5 is the strong threat.} Nd4 44. Nc5) 43... Ke7 $11 {[%emt 0:00:31]} 44. Ng5 {[%emt 0:00:14] Threatens to win with b5.} (44. Kg2 {simplifies} Kxe6 45. Kg3 Nd4 46. Kxg4 Kd5 47. Ng5) 44... Nd4 {[%emt 0:00:40] The position is equal.} 45. Kh2 {[%emt 0:01:27] Kg3 would now be deadly.} Nf5 {[%emt 0:01:00]} 46. b5 {[%emt 0:01:49]} (46. h5 $5) 46... Kd6 $1 {[%emt 0:00:20]} 47. h5 {[%emt 0:00:34]} Kc5 {[%emt 0:00:25] [#]} (47... Kd5 {is interesting.} 48. e7 g3+ 49. Kg2 Nxe7 50. b6 Kc6) 48. e7 $1 {[%emt 0:00:29]} Nxe7 {[%emt 0:00:25]} (48... g3+ 49. Kg2) 49. Ne6+ {[%emt 0:00:29]} Kxb5 {[%emt 0:00:32]} 50. Nxg7 {[%emt 0:00:05]} Ng8 {[%emt 0:01:16]} 51. Nf5 {[%emt 0:00:31]} Kc5 {[%emt 0:00:13]} 52. Kg3 {[%emt 0:00:05]} Kd5 {[%emt 0:00:11] White really could win this.   Weighted Error Value: White=0.19 (very precise) /Black=0.28 (precise) .  Missed win:     	White=1     	---        Mistake:       	White=2     	Black=5      Inaccurate:     	White=3     	Black=1      OK:         	White=15    	Black=19     Best:        	White=7     	Black=4      Strong:       	---       	Black=2} 1/2-1/2

[Event "SixDays Budapest IM-A 10-2024"]
[Site "Budapest"]
[Date "2024.10.02"]
[Round "5.3"]
[White "Zia, Tahsin Tajwar"]
[Black "Kustar, Sandor"]
[Result "1-0"]
[ECO "E62"]
[WhiteElo "2255"]
[BlackElo "2252"]
[Annotator "TA"]
[PlyCount "59"]
[EventDate "2024.09.24"]
[EventType "tourn"]
[EventCountry "HUN"]
[SourceTitle "playchess.com"]
[Source "ChessBase"]
[SourceQuality "1"]
[TimeControl "5400+30"]

{[%evp 14,59,13,18,26,19,73,77,131,97,96,66,61,30,35,-3,127,91,66,23,12,21,20,12,21,22,128,51,116,-22,95,104,96,77,250,252,238,232,626,659,934,941,2366,2292,1466,1325,1125,791]} 1. d4 {[%emt 0:00:03]} Nf6 {[%emt 0:04:34]} 2. c4 {[%emt 0:00:10]} g6 {[%emt 0:00:27]} 3. g3 {[%emt 0:00:18]} Bg7 {[%emt 0:00:10]} 4. Bg2 {[%emt 0:00:06]} d6 {[%emt 0:00:07]} 5. Nc3 {[%emt 0:00:06]} O-O {[%emt 0:00:22]} 6. Nf3 {[%emt 0:00:06]} Nc6 {[%emt 0:00:04]} 7. d5 {[%emt 0:00:27]} Na5 {[%emt 0:01:07]} 8. b3 {[%emt 0:00:02]} c5 {[%emt 0:07:38][%cal Of6d5]} ({Much weaker is} 8... Nxd5 9. Nxd5 c6 (9... Bxa1 10. Bd2 $14) 10. Nxe7+ Qxe7 11. Bg5 $16) 9. Bb2 {[%emt 0:00:28]} e5 {[%emt 0:11:40]} (9... Bd7 $11) 10. dxe6 $16 {[%emt 0:03:23]} fxe6 {[%emt 0:01:11]} (10... Bxe6 $142 11. Ng5 Bf5) 11. O-O {[%emt 0:00:37]} a6 {[%emt 0:22:09]} 12. Qc2 {[%emt 0:05:58]} Rb8 {[%emt 0:00:39]} 13. Rad1 {[%emt 0:18:51] White is more active.} (13. Ne4 $5 Nxe4 14. Bxg7 Kxg7 15. Qxe4 $16) 13... b5 {[%emt 0:01:16]} 14. e4 {[%emt 0:00:12] [#] e5 is the strong threat.} Ng4 {[%emt 0:02:44]} (14... bxc4 $11 15. e5 cxb3 16. axb3 Ng4) 15. cxb5 {[%emt 0:02:20]} axb5 {[%emt 0:00:53]} 16. h3 {[%emt 0:02:02]} (16. e5 $5 Nxe5 17. Nxe5 Bxe5 18. Ne4 $16) 16... Ne5 {[%emt 0:00:18]} 17. Nxe5 {[%emt 0:00:06]} Bxe5 {[%emt 0:00:05]} 18. f4 $36 {[%emt 0:01:20][%mdl 2048] White has some pressure.} Bd4+ {[%emt 0:00:37]} 19. Kh2 {[%emt 0:00:01]} e5 {[%emt 0:14:50]} (19... b4 $11 20. Na4 (20. Ne2 Bxb2 21. Qxb2 Nc6 $11) 20... Ba6) 20. Bc1 {[%emt 0:10:16]} (20. fxe5 $16 {Threatens to win with Rxf8+.} dxe5 21. Nd5 Rxf1 22. Rxf1) 20... Nc6 {[%emt 0:01:28] [#]} ({Better is} 20... b4 $14 21. Ne2 Ba6) 21. Nd5 {[%emt 0:03:22]} (21. Nxb5 $1 $16 {[%cal Of4e5] Black must now prevent fxe5!} Ba6 22. a4) 21... Be6 {[%emt 0:00:30]} (21... exf4 $11 {keeps the balance.} 22. Nxf4 b4) 22. f5 {[%emt 0:01:35]} Bxd5 {[%emt 0:05:58]} 23. exd5 {[%emt 0:00:27]} Ne7 {[%emt 0:00:23] A mistake that costs the game.} (23... Nb4 $16 24. Qb1 Qf6) 24. fxg6 $18 {[%emt 0:02:15]} hxg6 {[%emt 0:01:12]} 25. Bg5 {[%emt 0:01:09] Rxf8+ would now be deadly.} Rxf1 {[%emt 0:08:20]} (25... Qc7 26. Bxe7 Qxe7) 26. Rxf1 {[%emt 0:00:05] White is clearly winning.} Kg7 {[%emt 0:00:14][%cal Bg8g7,Bg7f7,Bf7e7][%mdl 32]} 27. Qe4 {[%emt 0:01:10]} Rb7 {[%emt 0:04:19]} 28. Bf6+ {[%emt 0:00:49] A strong pair of Bishops.} Kf7 {[%emt 0:00:29]} 29. Bxe7+ {[%emt 0:00:46]} Kxe7 {[%emt 0:00:07]} 30. Qh4+ {[%emt 0:00:14] Weighted Error Value: White=0.30/Black=1.08.  Loses game:     	---       	Black=1      Mistake:       	White=2     	Black=7      Inaccurate:     	White=4     	Black=1      OK:         	White=6     	Black=4      Best:        	White=1     	Black=1} 1-0